bitfinex/quotes_ETHUSD_20220305
["timestamp","ask_amount","ask_price","bid_price","bid_amount"]
[1646456728451,0.00369365,2617.6,2617.3,0.91677304]
[1646456729253,0.00369365,2617.6,2617.4,0.457]
[1646456731057,0.00369365,2617.6,2617.4,0.45946537]
[1646456731887,0.00369365,2617.6,2617.4,0.457]
[1646456732087,0.00369365,2617.6,2617.4,0.45946537]
[1646456733090,0.00369365,2617.6,2617.4,0.457]
[1646456733290,0.00369365,2617.6,2617.4,0.45919418]
[1646456734189,0.00369365,2617.6,2617.4,0.457]
[1646456734589,0.00369365,2617.6,2617.4,0.45919418]
[1646456735438,0.00369365,2617.6,2617.4,0.457]
[1646456735641,0.00369365,2617.6,2617.4,0.45919418]
[1646456736642,0.00369365,2617.6,2617.4,0.457]
[1646456737041,0.00369365,2617.6,2617.4,0.45897168]
[1646456737846,0.00369365,2617.6,2617.4,0.457]
[1646456738042,0.00369365,2617.6,2617.4,0.45897168]
[1646456739185,0.00369365,2617.6,2617.4,0.457]
[1646456740593,0.00369365,2617.6,2617.4,0.45901681]
[1646456741392,0.00369365,2617.6,2617.4,0.457]
[1646456741792,0.00369365,2617.6,2617.4,0.45901681]
[1646456742647,0.00369365,2617.6,2617.4,0.457]
[1646456742847,0.00369365,2617.6,2617.4,0.45901681]
[1646456743849,0.00369365,2617.6,2617.4,0.457]
[1646456744050,0.00369365,2617.6,2617.4,0.45900666]
[1646456745052,0.00369365,2617.6,2617.4,0.457]
[1646456745454,0.00369365,2617.6,2617.4,0.45900666]
[1646456746289,0.00369365,2617.6,2617.4,0.457]
[1646456746490,0.00369365,2617.6,2617.4,0.45900666]
[1646456747091,0.00224107,2617.6,2617.4,0.45900666]
[1646456747490,0.00224107,2617.6,2617.4,0.457]
[1646456747895,0.00224107,2617.6,2617.4,0.45900894]
[1646456748697,0.00224107,2617.6,2617.4,0.457]
[1646456748895,0.00224107,2617.6,2617.4,0.45900894]
[1646456749934,0.00224107,2617.6,2617.4,0.457]
[1646456750141,0.00224107,2617.6,2617.4,0.45900894]
[1646456751140,0.00224107,2617.6,2617.4,0.107]
[1646456751343,0.00224107,2617.6,2617.4,0.10900843]
[1646456752341,0.00224107,2617.6,2617.4,0.107]
[1646456752551,0.00224107,2617.6,2617.4,0.10900843]
[1646456753545,0.00224107,2617.6,2617.4,0.107]
[1646456753786,0.00224107,2617.6,2617.4,0.10900843]
[1646456754791,0.00224107,2617.6,2617.4,0.107]
[1646456754990,0.00224107,2617.6,2617.4,0.10900855]
[1646456755393,0.00224107,2617.6,2617.3,0.67578159]
[1646456755593,0.00224107,2617.6,2617.4,0.457]
[1646456775441,0.00140123,2617.6,2617.4,0.457]
[1646456788346,0.00140123,2617.6,2617.4,3.66198581]
[1646456788549,0.00140123,2617.6,2617.5,3.58657823]
[1646456788748,0.00140123,2617.6,2617.5,10.75957823]
[1646456788949,3.691,2618.9,2617.7,0.3816]
[1646456789251,1.56647381,2618.8,2618.5,1.11758714]
[1646456789448,1.56647381,2618.8,2618.6,0.457]
[1646456790252,1.56647381,2618.7,2618.6,0.457]
[1646456790452,1.56647381,2619.0,2618.6,0.457]
[1646456792094,1.56647381,2618.9,2618.6,0.457]
[1646456792299,1.56647381,2618.8,2618.6,0.457]
[1646456792596,1.56647381,2618.7,2618.6,0.457]
[1646456792995,1.56647381,2619.1,2618.6,0.457]
[1646456793296,1.56647381,2619.0,2618.6,0.457]
[1646456793494,1.56647381,2618.9,2618.6,0.457]
[1646456793696,1.56647381,2618.8,2618.6,0.457]
[1646456793896,1.56647381,2618.7,2618.6,0.457]
[1646456794800,8.54708421,2619.2,2618.6,0.457]
[1646456794801,1.94807381,2619.1,2618.6,0.457]
[1646456795045,5.06647381,2619.0,2618.6,0.457]
[1646456795347,1.56647381,2618.9,2618.6,0.457]
[1646456796245,0.84636562,2618.5,2618.3,0.00801493]
[1646456796445,0.84636562,2618.5,2618.4,0.457]
[1646456797046,2.41287862,2618.5,2618.4,0.457]
[1646456812048,2.41287862,2618.5,2618.4,4.61574615]
[1646456813248,2.41287862,2618.5,2618.4,0.457]
[1646456816399,0.84132979,2618.3,2617.9,0.008016]
[1646456816601,1.566513,2618.2,2618.0,0.457]
[1646456827453,0.84132979,2618.3,2618.1,0.93722697]
[1646456827651,0.84132979,2618.3,2618.2,0.457]
[1646456828053,0.84132979,2618.3,2618.2,0.8386]
[1646456829091,0.84132979,2618.3,2618.2,5.27156415]
[1646456829294,0.84132979,2618.3,2618.2,6.27156415]
[1646456829492,0.84132979,2618.3,2618.2,7.22658415]
[1646456829693,0.84636562,2618.5,2618.3,5.1816]
[1646456829893,0.84636562,2618.5,2618.4,9.98101158]
[1646456829894,0.26474293,2618.5,2618.4,9.98101158]
[1646456830299,2.41058417,2619.7,2618.5,5.7548979]
[1646456830300,0.1908,2619.6,2618.5,5.7548979]
[1646456830500,1.56605119,2619.5,2618.8,0.95486]
[1646456830699,1.5679722,2619.4,2619.2,0.98405563]
[1646456830897,0.00192101,2619.4,2619.3,0.457]
[1646456831501,1.56601548,2619.6,2619.3,0.457]
[1646456831898,0.00252244,2619.5,2619.3,0.457]
[1646456832843,1.56601548,2619.6,2619.3,0.457]
[1646456833045,0.00252243,2619.5,2619.3,0.457]
[1646456833945,1.56601548,2619.6,2619.3,0.457]
[1646456834149,1.56601548,2619.5,2619.3,0.457]
[1646456834345,1.56601548,2619.4,2619.3,0.457]
[1646456834745,0.00252243,2619.5,2619.3,0.457]
[1646456835249,1.56601548,2619.6,2619.3,3.76587853]
[1646456835453,0.00252185,2619.5,2619.3,3.76587853]
[1646456835750,0.00252185,2619.5,2619.3,1.457]
[1646456836204,0.00252185,2619.5,2619.3,2.74784]
[1646456836405,1.56586173,2619.9,2619.3,2.74784]
[1646456836605,0.00252185,2619.5,2619.3,7.06003414]
[1646456836810,0.00252185,2619.5,2619.4,0.9545587]
[1646456837008,0.00096,2620.2,2619.5,4.8]
[1646456837009,1.56674805,2620.2,2619.5,4.8]
[1646456837207,1.56578805,2620.1,2619.7,0.95442]
[1646456837407,0.00096,2620.5,2619.8,0.457]
[1646456837610,0.00096,2620.6,2619.9,3.31875639]
[1646456837807,1.2169,2621.3,2619.9,3.31875639]
[1646456837808,0.00096,2620.7,2620.0,0.457]
[1646456838009,0.00096,2620.8,2620.5,1.22484351]
[1646456838307,0.44498823,2620.4,2620.3,0.95682517]
[1646456839311,0.44498823,2620.4,2620.3,1.91117517]
[1646456839962,0.44498823,2620.4,2620.3,2.36817517]
[1646456840157,0.44498823,2620.4,2620.3,1.41382517]
[1646456842760,0.44498823,2620.4,2620.3,0.457]
[1646456850958,0.00096,2621.2,2620.4,4.8]
[1646456851200,0.00251117,2620.5,2620.4,15.65217191]
[1646456851400,0.1907,2621.9,2620.5,5.35271103]
[1646456851616,0.3816,2622.0,2621.2,5.716]
[1646456851617,0.1907,2622.0,2621.2,5.716]
[1646456851903,0.1907,2622.0,2621.1,1.0]
[1646456851904,0.3819,2622.2,2621.4,1.11001975]
[1646456852102,1.0,2622.7,2622.0,4.8]
[1646456852302,1.1366379,2623.1,2622.7,0.00137732]
[1646456852500,1.56445939,2623.0,2622.8,0.457]
[1646456852703,0.0061379,2623.1,2622.8,0.457]
[1646456853101,0.15847327,2623.2,2622.9,1.15479288]
[1646456853300,0.0290869,2623.3,2623.0,1.4102386]
[1646456853498,0.0290869,2623.3,2623.0,2.3635086]
[1646456854401,0.0290869,2623.3,2623.1,0.9533]
[1646456854602,0.0290869,2623.3,2623.2,0.457]
[1646456855659,0.0290869,2623.3,2623.2,3.957]
[1646456855859,0.0290869,2623.3,2623.2,1.457]
[1646456856358,0.0290869,2623.3,2623.2,0.457]
[1646456857561,0.035185,2623.7,2623.3,4.8]
[1646456857761,0.035185,2623.7,2623.4,1.41006]
[1646456858159,0.035185,2623.7,2623.3,2.60120184]
[1646456858360,0.035185,2623.7,2623.4,1.68562233]
[1646456858565,9.0222,2624.4,2623.4,1.68562233]
[1646456858566,2.8749835,2624.7,2623.6,4.8]
[1646456858823,2.8749835,2624.7,2623.8,0.95301]
[1646456858824,0.0144345,2624.5,2623.8,0.95301]
[1646456859022,0.04035806,2624.3,2623.9,0.457]
[1646456859222,0.04035806,2624.3,2624.0,0.3816]
[1646456859421,0.04035806,2624.3,2624.1,0.457]
[1646456859721,0.04035806,2624.3,2624.2,1.26206198]
[1646456859927,0.04035806,2624.3,2624.2,0.457]
[1646456861130,3.54035806,2624.3,2624.2,0.457]
[1646456861335,3.54035806,2624.3,2623.4,0.1905]
[1646456861336,0.3816,2624.2,2622.9,1.1905]
[1646456861534,0.3816,2624.0,2623.0,0.1905]
[1646456861733,4.33791495,2624.1,2623.0,0.457]
[1646456861734,0.3816,2623.8,2623.0,0.457]
[1646456861930,0.3816,2624.0,2623.0,0.457]
[1646456862332,0.3816,2624.0,2623.6,1.16301422]
[1646456862556,0.3816,2624.0,2623.7,0.457]
[1646456863151,0.0026822,2623.9,2623.7,0.457]
[1646456863953,0.3816,2624.0,2623.7,0.457]
[1646456864154,3.8816,2624.0,2623.7,0.457]
[1646456864555,15.5316,2624.0,2623.7,0.457]
[1646456864757,15.7221,2624.0,2623.7,0.457]
[1646456864956,4.0721,2624.0,2623.7,0.457]
[1646456865556,4.07477634,2624.0,2623.7,0.457]
[1646456865959,15.72477634,2624.0,2622.8,0.457]
[1646456866209,12.0316,2623.8,2622.7,0.00137732]
[1646456866501,12.0316,2623.6,2622.7,0.00137732]
[1646456866702,12.0316,2623.4,2622.7,0.00137732]
[1646456866902,12.0316,2623.2,2622.7,0.00137732]
[1646456867101,3.5,2623.3,2622.7,0.00137732]
[1646456867102,12.0316,2623.0,2622.7,0.00137732]
[1646456867300,0.3816,2623.0,2622.7,0.00137732]
[1646456868106,0.00096,2623.3,2622.7,0.00137732]
[1646456868306,0.3816,2623.2,2622.7,0.00137732]
[1646456868506,0.3816,2623.2,2622.9,0.89649029]
[1646456868905,0.3816,2623.2,2622.7,0.00137732]
[1646456870462,0.3816,2623.4,2622.7,0.00137732]
[1646456870660,0.3816,2623.2,2622.7,0.00137732]
[1646456871561,3.5,2623.1,2622.7,0.00137732]
[1646456871760,0.3816,2623.2,2622.7,0.00137732]
[1646456873160,3.5,2623.1,2622.7,0.00137732]
[1646456874201,0.3816,2623.2,2622.7,0.00137732]
[1646456874602,0.1905,2623.3,2622.7,0.00137732]
[1646456874603,0.5721,2623.3,2622.7,0.00137732]
[1646456875406,0.3816,2623.3,2622.7,0.00137732]
[1646456876205,0.3816,2623.3,2622.8,1.08359442]
[1646456876605,0.3816,2623.3,2622.7,0.00137732]
[1646456876806,12.0316,2623.3,2622.7,0.00137732]
[1646456877009,12.0316,2623.1,2622.7,0.00137732]
[1646456877212,12.0316,2622.9,2622.7,0.00137732]
[1646456877467,15.15,2622.8,2622.7,7.732e-05]
[1646456877657,15.15096,2622.8,2622.7,7.732e-05]
[1646456877857,0.3816,2622.3,2621.4,0.1905]
[1646456878057,12.0316,2621.9,2621.2,0.457]
[1646456878559,0.3816,2622.1,2621.2,0.457]
[1646456878761,2.8583,2622.5,2621.3,0.99122604]
[1646456878762,0.00096,2622.0,2621.3,0.99122604]
[1646456878958,0.00096,2622.3,2621.9,0.90530939]
[1646456879157,2.8583,2622.5,2620.7,3.291]
[1646456879158,0.76350629,2621.8,2621.6,1.18554946]
[1646456881999,0.76350629,2621.8,2621.7,0.457]
[1646456884005,0.76350629,2621.8,2621.7,1.41084]
[1646456884403,0.76350629,2621.8,2621.7,1.58195103]
[1646456884604,0.76350629,2621.8,2621.7,2.58195103]
[1646456884971,0.76350629,2621.8,2621.7,7.08195103]
[1646456885363,0.00168268,2622.6,2621.7,7.08195103]
[1646456885564,0.00168268,2622.6,2621.9,1.9074158]
[1646456885866,0.00072268,2622.6,2622.1,0.9537]
[1646456886168,0.00072268,2622.6,2622.2,0.457]
[1646456886367,0.00072268,2622.6,2622.4,1.10101359]
[1646456886566,0.00072268,2622.6,2622.5,0.457]
[1646456890805,0.00072268,2622.6,2622.5,1.3506]
[1646456891608,0.00072268,2622.6,2622.5,1.3006]
[1646456891809,1.51579919,2623.3,2622.6,5.1816]
[1646456892008,0.01011367,2623.1,2622.7,1.41049]
[1646456892654,0.01011367,2623.1,2623.0,1.0]
[1646456892855,1.1797,2623.6,2623.0,1.457]
[1646456893056,0.13819996,2623.7,2623.5,0.89889473]
[1646456893457,0.1905,2623.9,2623.5,0.89889473]
[1646456894255,0.00252849,2623.8,2623.5,0.89889473]
[1646456894457,0.7020127,2623.8,2623.5,0.89889473]
[1646456895259,0.88998421,2623.9,2623.5,0.89889473]
[1646456895459,0.00252215,2623.8,2623.5,0.89889473]
[1646456895962,0.00252215,2623.8,2623.3,0.457]
[1646456896201,0.65200636,2623.8,2623.3,0.457]
[1646456896401,3.5,2623.7,2623.3,0.457]
[1646456896604,3.5,2623.7,2622.8,2.9905]
[1646456896801,3.5,2623.7,2622.8,3.4475]
[1646456896802,3.50348217,2623.7,2622.8,3.4475]
[1646456897002,3.50348217,2623.7,2622.8,0.457]
[1646456897003,12.0316,2623.6,2622.8,0.457]
[1646456897201,3.5,2623.5,2622.8,0.457]
[1646456897401,4.43522497,2623.6,2622.8,0.457]
[1646456897602,0.93522497,2623.6,2622.8,0.457]
[1646456897800,4.43522497,2623.6,2622.8,0.457]
[1646456898402,0.3816,2623.5,2622.8,0.457]
[1646456898803,3.5,2623.4,2622.8,0.457]
[1646456899206,3.5,2623.4,2622.6,0.40628101]
[1646456899405,12.0316,2623.3,2622.1,2.9883]
[1646456899606,12.0316,2623.1,2622.1,3.4453]
[1646456899803,3.88256,2623.0,2622.1,3.4453]
[1646456900259,3.50096,2623.0,2622.1,3.4453]
[1646456900662,0.00096,2623.0,2622.1,3.4453]
[1646456900862,3.50096,2623.0,2622.4,1.15543801]
[1646456901162,3.5,2623.0,2622.4,1.15543801]
[1646456901561,0.8044,2623.1,2622.4,1.15543801]
[1646456901765,0.4228,2623.1,2622.4,1.15543801]
[1646456902063,0.4228,2623.1,2622.4,3.51944801]
[1646456902661,0.4228,2623.1,2622.4,4.90104801]
[1646456902860,0.4228,2623.1,2622.5,0.1905]
[1646456903060,0.4228,2623.1,2622.6,0.457]
[1646456903260,0.4228,2623.1,2623.0,1.12549851]
[1646456903462,0.4228,2623.1,2623.0,1.58249851]
[1646456906512,0.4228,2623.1,2623.0,0.457]
[1646456907556,0.4228,2623.1,2622.2,1.0]
[1646456907557,4.3044,2623.1,2622.5,0.457]
[1646456907758,0.00096,2623.0,2622.2,0.6475]
[1646456907955,0.70066744,2623.0,2622.2,0.6475]
[1646456908155,3.5,2622.9,2622.2,0.6475]
[1646456908356,16.23130744,2622.9,2622.1,2.9883]
[1646456908556,0.3816,2622.7,2621.7,4.3767]
[1646456908755,0.3816,2622.5,2621.7,4.3767]
[1646456908955,0.3816,2622.5,2621.6,2.919]
[1646456909356,3.8816,2622.4,2621.6,0.1905]
[1646456909567,16.23130744,2622.4,2621.5,0.1905]
[1646456909759,16.23130744,2622.4,2621.3,0.457]
[1646456910161,4.58130744,2622.4,2621.4,0.00836258]
[1646456910361,4.58130744,2622.4,2621.5,0.95892966]
[1646456911302,4.19970744,2622.4,2621.5,0.95892966]
[1646456911504,3.5,2622.4,2621.5,0.95892966]
[1646456911701,1.348,2622.5,2621.5,0.95892966]
[1646456911901,1.56455614,2622.4,2621.6,0.457]
[1646456912105,5.06455614,2622.4,2621.6,0.457]
[1646456912404,1.348,2622.5,2621.6,0.457]
[1646456912405,1.56455614,2622.3,2622.0,0.91865612]
[1646456912603,1.56455614,2622.2,2622.0,0.91865612]
[1646456912804,1.56455614,2622.1,2622.0,0.91865612]
[1646456913003,1.56455614,2622.1,2621.8,0.457]
[1646456913203,1.56455614,2622.0,2621.8,0.457]
[1646456913402,0.9664,2622.5,2621.8,0.457]
[1646456913403,3.5,2622.4,2621.8,0.457]
[1646456913702,1.56456,2622.3,2621.8,0.457]
[1646456915861,1.56456,2622.2,2621.8,0.457]
[1646456916059,1.56456,2622.1,2621.8,0.457]
[1646456916258,1.56456,2622.0,2621.8,0.457]
[1646456916457,4.4664,2622.5,2621.8,0.457]
[1646456916658,1.56451827,2622.4,2621.8,0.457]
[1646456917060,1.75501827,2622.4,2621.8,0.457]
[1646456917262,1.56451827,2622.3,2621.8,0.457]
[1646456918265,0.9664,2622.5,2621.9,3.13293826]
[1646456918463,0.9664,2622.5,2622.0,0.8386]
[1646456918704,0.9664,2622.5,2622.4,1.0]
[1646456919001,0.9664,2622.5,2622.4,2.40389818]
[1646456920104,0.00096,2623.0,2622.4,2.40389818]
[1646456920305,1.56418942,2623.0,2622.4,2.40389818]
[1646456920605,1.56418942,2622.9,2622.4,1.40389818]
[1646456920803,1.56418942,2622.8,2622.4,1.40389818]
[1646456921005,1.56418942,2622.7,2622.5,1.21639579]
[1646456921204,1.56418942,2622.7,2622.6,0.457]
[1646456921607,0.00096,2623.0,2622.6,0.457]
[1646456921804,0.4228,2623.1,2622.6,0.457]
[1646456924560,15.5316,2623.0,2622.6,0.457]
[1646456924759,1.21152152,2622.4,2622.1,3.3574]
[1646456925556,1.21152152,2622.4,2622.1,0.457]
[1646456927604,1.16152152,2622.4,2622.1,0.457]
[1646456935515,3.5,2622.3,2622.1,0.457]
[1646456935711,3.8816,2622.3,2621.5,2.903]
[1646456936312,12.0316,2622.1,2621.4,0.457]
[1646456936514,0.3816,2621.9,2621.4,0.00836319]
[1646456936712,0.3816,2621.7,2621.4,0.00836319]
[1646456937555,0.3816,2621.7,2621.1,1.22810906]
[1646456938059,3.8816,2621.8,2621.1,1.22810906]
[1646456938255,0.3816,2621.9,2621.1,1.22810906]
[1646456938856,3.5,2622.1,2621.2,0.457]
[1646456939056,0.3816,2622.1,2621.2,0.457]
[1646456940160,0.3816,2622.1,2621.7,1.10363077]
[1646456940360,1.54312152,2622.4,2621.7,1.10363077]
[1646456940563,1.54312152,2622.4,2621.7,1.56063077]
[1646456940564,1.16152152,2622.4,2621.7,1.56063077]
[1646456941511,1.56448796,2622.3,2621.7,1.56063077]
[1646456941911,5.44608796,2622.3,2621.7,0.457]
[1646456942110,1.94608796,2622.2,2621.7,0.457]
[1646456942311,1.94608796,2622.1,2621.7,0.457]
[1646456942509,1.94608796,2622.0,2621.7,0.457]
[1646456942710,1.56448796,2621.9,2621.7,0.457]
[1646456943114,1.56448796,2621.8,2621.7,0.457]
[1646456943610,1.56448796,2622.1,2621.7,0.457]
[1646456945059,1.56448796,2622.1,2621.4,0.00836319]
[1646456945060,0.67624712,2621.6,2621.4,0.00836319]
[1646456945457,1.05784712,2621.6,2621.4,0.00836319]
[1646456945859,1.56479435,2621.5,2621.2,2.50344396]
[1646456946059,1.56479435,2621.5,2621.1,7.927]
[1646456946060,1.05784712,2621.6,2621.1,10.43044396]
[1646456946661,1.56480268,2621.5,2621.1,10.43044396]
[1646456947061,1.94640268,2621.5,2621.1,2.96044396]
[1646456947363,0.3816,2621.3,2620.8,0.00836494]
[1646456948164,0.3816,2621.3,2620.5,2.96086238]
[1646456948364,0.3816,2621.3,2620.6,0.91661454]
[1646456949209,0.3816,2621.4,2620.6,0.91661454]
[1646456949608,0.3816,2621.4,2620.6,1.37361454]
[1646456950011,0.67624712,2621.6,2621.0,1.1048688]
[1646456950210,0.67624712,2621.6,2621.1,0.457]
[1646456951912,1.56477938,2621.5,2621.1,0.457]
[1646456952553,0.67624712,2621.6,2621.1,0.457]
[1646456953962,1.56481996,2621.5,2621.4,1.18789695]
[1646456954162,0.67624712,2621.6,2621.4,1.64489695]
[1646456954561,0.67624712,2621.6,2621.4,2.64489695]
[1646456957719,0.67624712,2621.6,2621.5,3.5]
[1646456957919,0.67624712,2621.6,2621.5,3.957]
[1646456958824,0.67624712,2621.6,2621.5,0.457]
[1646456959418,0.67624712,2621.6,2621.5,3.957]
[1646456959718,0.67624712,2621.6,2621.5,4.957]
[1646456960963,0.67624712,2621.6,2621.5,5.957]
[1646456963805,0.67624712,2621.6,2621.5,8.46024065]
[1646456966012,1.16152152,2622.4,2621.6,4.7762]
[1646456966214,1.16152152,2622.4,2621.7,9.673]
[1646456966414,1.16152152,2622.4,2621.7,11.96196]
[1646456966616,1.16152152,2622.4,2621.7,24.61196]
[1646456966812,1.16152152,2622.4,2622.3,1.0]
[1646456967013,1.16152152,2622.4,2622.3,1.457]
[1646456967212,1.16152152,2622.4,2622.3,2.59920593]
[1646456967492,1.16152152,2622.4,2622.3,3.55280593]
[1646456967692,0.14833689,2623.1,2622.4,5.098324]
[1646456967894,0.14833689,2623.1,2622.5,0.457]
[1646456967895,1.56401698,2623.0,2622.5,0.457]
[1646456968901,1.56401698,2623.2,2622.5,0.457]
[1646456969099,0.20063733,2623.3,2623.1,1.11699736]
[1646456969301,0.09421811,2622.9,2622.4,9.598324]
[1646456969499,0.09421811,2622.9,2622.5,0.457]
[1646456969699,0.09421811,2622.9,2622.6,0.88887837]
[1646456969899,0.09421811,2622.9,2622.7,0.457]
[1646456971232,0.09421811,2622.9,2622.8,1.0]
[1646456971431,0.09421811,2622.9,2622.8,1.45569728]
[1646456974140,1.65822765,2622.9,2622.8,1.45569728]
[1646456974344,1.65822765,2622.9,2622.8,0.457]
[1646456974962,1.65822765,2622.9,2622.4,0.298324]
[1646456974963,0.3816,2622.8,2622.4,0.298324]
[1646456975164,1.94560954,2622.7,2622.4,0.298324]
[1646456975365,1.56400954,2622.6,2622.4,0.298324]
[1646456976165,1.94560954,2622.6,2622.4,0.298324]
[1646456976365,1.56400954,2622.5,2622.4,0.298324]
[1646456977766,0.43021811,2622.9,2622.4,0.298324]
[1646456977767,1.94560954,2622.6,2622.4,0.298324]
[1646456977967,1.56400954,2622.5,2622.4,0.298324]
[1646456978916,13.21400954,2622.5,2622.4,0.298324]
[1646456979117,13.21400954,2622.5,2621.7,0.3813]
[1646456979318,13.21400954,2622.5,2621.4,0.00836306]
[1646456979319,12.0316,2622.2,2621.4,0.00836306]
[1646456979522,0.3816,2622.0,2621.1,6.197]
[1646456979718,0.3816,2621.8,2621.1,6.197]
[1646456979920,0.3816,2621.8,2621.4,0.00836306]
[1646456980721,0.3816,2621.8,2621.2,1.00924641]
[1646456981320,0.3816,2621.6,2621.1,0.00836414]
[1646456981523,0.3816,2621.4,2621.1,0.00836414]
[1646456981722,3.8816,2621.3,2621.1,0.00836414]
[1646456981921,3.8816,2621.3,2621.0,2.50362028]
[1646456981922,0.3816,2621.3,2621.0,2.50362028]
[1646456982126,3.8816,2621.3,2621.0,2.50362028]
[1646456982863,0.3816,2621.3,2620.8,0.00836494]
[1646456983063,0.4401,2621.4,2620.7,1.04119164]
[1646456983064,0.3816,2621.4,2620.7,1.04119164]
[1646456984365,0.3816,2621.6,2620.7,1.04119164]
[1646456984567,0.3816,2621.4,2620.8,0.457]
[1646456985467,0.5723,2621.7,2620.8,0.457]
[1646456985668,0.3816,2621.5,2620.8,0.457]
[1646456985867,0.5723,2621.5,2620.8,0.457]
[1646456986307,0.3816,2621.3,2620.8,0.457]
[1646456986514,0.1907,2621.6,2620.8,0.457]
[1646456986711,1.2193,2621.9,2621.1,1.0]
[1646456986910,1.56470823,2621.8,2621.2,0.457]
[1646456987315,0.1907,2622.1,2621.2,0.457]
[1646456987512,1.94627688,2621.9,2621.2,1.36194298]
[1646456987812,0.3816,2621.9,2621.2,1.36194298]
[1646456988012,1.1414,2622.2,2621.2,1.36194298]
[1646456988313,1.5646002,2621.9,2621.2,1.36194298]
[1646456988511,1.1414,2622.2,2621.2,1.36194298]
[1646456988512,0.3816,2622.1,2621.2,1.36194298]
[1646456988814,0.3816,2621.9,2621.2,1.36194298]
[1646456989215,0.3816,2621.7,2621.2,0.457]
[1646456990273,12.16979996,2622.0,2621.2,0.457]
[1646456990569,0.3816,2621.8,2621.2,0.457]
[1646456991968,0.13819996,2622.0,2621.2,0.457]
[1646456992167,1.56462716,2621.9,2621.2,0.457]
[1646456993370,0.13819996,2622.0,2621.2,0.457]
[1646456993570,0.13819996,2622.0,2621.4,0.944089]
[1646456993811,0.13819996,2622.0,2621.5,0.457]
[1646456996517,1.56463179,2621.9,2621.5,0.457]
[1646456998864,1.56463179,2621.9,2621.2,0.97848985]
[1646456999065,1.56463179,2621.9,2621.2,0.98685367]
[1646456999963,1.56463179,2621.9,2621.2,0.97848985]
[1646457000367,1.56463179,2621.9,2621.2,1.43548985]
[1646457002414,3.5,2621.8,2621.2,0.457]
[1646457002613,15.5316,2621.8,2621.0,0.0083643]
[1646457002814,12.0316,2621.6,2621.0,0.0083643]
[1646457003020,5.06463179,2621.5,2621.0,0.0083643]
[1646457003218,1.56463179,2621.4,2621.0,0.0083643]
[1646457003617,1.56463179,2621.4,2620.7,3.82384761]
[1646457003817,1.56463179,2621.4,2620.7,3.83221287]
[1646457004818,1.56463179,2621.4,2620.7,3.82384761]
[1646457005068,15.15,2621.3,2620.7,3.82384761]
[1646457005266,16.0184,2621.3,2620.7,3.82384761]
[1646457005467,4.3684,2621.3,2620.7,3.82384761]
[1646457005868,1.56504079,2621.2,2620.7,3.82384761]
[1646457006470,3.5,2621.3,2620.7,3.82384761]
[1646457006668,12.0316,2621.5,2620.7,3.82384761]
[1646457006869,5.06498958,2621.4,2620.7,3.82384761]
[1646457007068,1.5649901,2621.3,2620.7,3.82384761]
[1646457007469,1.5649901,2621.3,2620.7,4.68916874]
[1646457007872,1.5649901,2621.3,2620.7,0.86532113]
[1646457008276,3.5,2621.4,2620.7,0.86532113]
[1646457008474,12.2223,2621.8,2620.7,0.86532113]
[1646457008475,3.8816,2621.7,2620.7,0.86532113]
[1646457008711,1.75567785,2621.6,2620.7,0.86532113]
[1646457008917,1.56497785,2621.5,2620.7,1.32232113]
[1646457009118,1.1379,2621.9,2620.7,1.70392113]
[1646457009315,1.1379,2621.9,2620.7,2.65813113]
[1646457009316,1.56483272,2621.8,2620.7,2.65813113]
[1646457010017,1.1379,2621.9,2621.5,1.18720646]
[1646457010219,0.13819996,2622.0,2621.5,1.18720646]
[1646457012219,0.13819996,2622.0,2621.9,0.98196796]
[1646457012478,0.68694888,2621.6,2621.3,0.3816]
[1646457012670,0.68694888,2621.6,2621.5,0.3816]
[1646457012870,0.68694888,2621.6,2621.5,4.3386]
[1646457013270,0.68694888,2621.6,2621.5,5.3386]
[1646457013473,0.68694888,2621.6,2621.5,3.33773087]
[1646457013869,0.68694888,2621.6,2621.5,2.33773087]
[1646457014269,0.68694888,2621.6,2621.5,1.33773087]
[1646457016919,0.68694888,2621.6,2621.5,1.23773087]
[1646457022265,0.68694888,2621.6,2621.5,5.1513936]
[1646457022666,0.68694888,2621.6,2621.5,6.1513936]
[1646457026124,0.68694888,2621.6,2621.5,5.1513936]
[1646457027563,0.68694888,2621.6,2621.5,4.27066273]
[1646457028064,0.68694888,2621.6,2621.5,3.91366273]
[1646457028660,4.18694888,2621.6,2621.5,3.91366273]
[1646457028861,4.18694888,2621.6,2620.9,3.91489955]
[1646457028862,16.4316,2621.5,2620.9,3.91489955]
[1646457029071,12.0316,2621.3,2621.0,0.00930528]
[1646457029265,3.8816,2621.2,2621.0,0.00930528]
[1646457029465,3.5,2621.1,2621.0,0.00930528]
[1646457029865,1.56498861,2621.1,2620.6,0.00235926]
[1646457030067,1.94658861,2621.1,2620.6,1.1325202]
[1646457030268,0.3816,2621.1,2620.6,1.1325202]
[1646457031066,1.56499973,2621.0,2620.6,1.1325202]
[1646457031329,0.3816,2621.1,2620.6,1.13487946]
[1646457031525,1.56501096,2621.0,2620.6,1.1325202]
[1646457031741,3.5,2621.3,2620.5,1.51951753]
[1646457031742,3.8816,2620.9,2620.5,1.51951753]
[1646457031934,1.94665081,2620.8,2620.5,1.51951753]
[1646457032133,17.09665081,2620.7,2620.4,0.0025564]
[1646457032328,17.09665081,2620.7,2620.1,0.00235926]
[1646457032329,1.94689343,2620.6,2620.1,0.00235926]
[1646457032531,1.56529343,2620.5,2619.9,0.00235926]
[1646457032726,1.56529343,2620.5,2619.7,2.45535601]
[1646457032927,5.06529343,2620.5,2619.7,2.45535601]
[1646457033127,1.56529343,2620.4,2619.7,2.45535601]
[1646457033329,2.62349343,2620.4,2619.7,2.45535601]
[1646457033531,1.0582,2620.4,2619.7,0.93583848]
[1646457033931,1.0582,2620.4,2620.0,0.00255621]
[1646457034432,3.5,2620.3,2620.0,0.00255621]
[1646457034967,3.5,2620.3,2620.1,0.00255611]
[1646457035169,1.0582,2620.4,2620.1,0.00255611]
[1646457035681,0.3816,2620.6,2620.1,0.00255611]